bitfinex/quotes_SOLUSD_20240915
["timestamp","ask_amount","ask_price","bid_price","bid_amount"]
[1726443420786,16.3283027,131.85,131.8,20.0]
[1726443421510,16.3283027,131.85,131.81,1.51617877]
[1726443421981,16.3283027,131.85,131.81,25.74025175]
[1726443422189,16.3283027,131.85,131.82,20.0]
[1726443422409,16.3283027,131.85,131.75,20.0]
[1726443422582,16.3283027,131.85,131.79,20.0]
[1726443424386,16.3283027,131.85,131.77,20.0]
[1726443424618,23.1542027,131.85,131.77,20.0]
[1726443424797,16.3283027,131.85,131.77,20.0]
[1726443425411,23.1543027,131.85,131.77,20.0]
[1726443425616,30.406484,131.84,131.77,20.0]
[1726443425795,30.406484,131.84,131.75,20.0]
[1726443426899,30.406484,131.84,131.77,20.0]
[1726443430815,6.2113,131.8,131.67,0.3248327]
[1726443431115,6.2113,131.8,131.69,24.22407298]
[1726443431495,6.2113,131.8,131.71,24.22407298]
[1726443432512,6.2113,131.8,131.72,20.0]
[1726443434999,6.2113,131.8,131.73,25.7412343]
[1726443435202,6.2113,131.8,131.74,20.0]
[1726443435819,6.2113,131.8,131.75,1.51748345]
[1726443436698,6.2113,131.8,131.75,25.74155643]
[1726443436900,6.2113,131.8,131.76,20.0]
[1726443437098,6.2113,131.8,131.71,24.22407298]
[1726443437322,6.2113,131.8,131.72,20.0]
[1726443439444,6.2113,131.8,131.73,1.51776589]
[1726443439632,6.2113,131.8,131.74,20.0]
[1726443440645,6.2113,131.8,131.76,20.0]
[1726443440847,6.2113,131.8,131.74,20.0]
[1726443441220,6.2113,131.8,131.73,20.0]
[1726443442646,16.2225,131.78,131.71,20.0]
[1726443442847,16.2225,131.78,131.68,54.22407298]
[1726443443144,16.2225,131.78,131.7,24.22407298]
[1726443444438,16.2225,131.78,131.71,20.0]
[1726443448845,16.2225,131.78,131.72,1.51801873]
[1726443449350,16.2225,131.78,131.71,20.0]
[1726443449555,16.2225,131.78,131.73,20.0]
[1726443451029,16.2225,131.78,131.75,20.0]
[1726443452429,16.2225,131.78,131.77,20.0]
[1726443453353,16.2225,131.78,131.75,20.0]
[1726443457040,16.2225,131.78,131.77,20.0]
[1726443457232,6.2113,131.8,131.77,21.21995165]
[1726443457448,6.2113,131.8,131.77,20.0]
[1726443462574,6.2113,131.8,131.74,24.22407298]
[1726443463946,6.2113,131.8,131.75,20.0]
[1726443464358,6.2113,131.8,131.76,24.22407298]
[1726443464553,6.2113,131.8,131.77,20.0]
[1726443465973,6.2113,131.8,131.78,15.50906594]
[1726443466151,6.2113,131.8,131.79,20.0]
[1726443466357,16.2684082,131.81,131.79,20.0]
[1726443468369,16.2684082,131.81,131.78,15.50906594]
[1726443468663,16.2684082,131.81,131.71,0.0671104]
[1726443468664,23.776884,131.8,131.71,0.0671104]
[1726443468871,23.776884,131.8,131.73,15.50906594]
[1726443469260,23.776884,131.8,131.74,15.50906594]
[1726443469956,23.776884,131.8,131.75,20.0]
[1726443470154,16.2684082,131.81,131.76,20.0]
[1726443470351,16.2684082,131.81,131.76,35.50906594]
[1726443474755,16.2684082,131.81,131.77,1.51748982]
[1726443475070,16.2684082,131.81,131.76,15.50906594]
[1726443475252,16.2684082,131.81,131.75,20.0]
[1726443475647,23.0964082,131.81,131.75,20.0]
[1726443475849,23.776884,131.8,131.74,20.0]
[1726443476066,30.605484,131.8,131.72,15.50906594]
[1726443476365,30.605484,131.8,131.71,15.57617634]
[1726443476366,16.1525,131.78,131.71,15.57617634]
[1726443476971,16.1525,131.78,131.72,15.50906594]
[1726443477472,16.1525,131.78,131.73,35.50906594]
[1726443478053,16.1525,131.78,131.71,24.3195771]
[1726443478258,16.1525,131.78,131.72,20.0]
[1726443478772,16.1525,131.78,131.71,0.0671104]
[1726443482489,16.1525,131.78,131.72,20.0]
[1726443483457,16.1525,131.78,131.73,1.51778584]
[1726443483664,16.1525,131.78,131.74,1.51772937]
[1726443484358,16.1525,131.78,131.74,20.0]
[1726443485390,16.1525,131.78,131.75,0.64569598]
[1726443485887,16.1525,131.78,131.74,20.0]
[1726443486582,16.1525,131.78,131.75,1.51691184]
[1726443486888,16.1525,131.78,131.74,20.0]
[1726443487177,16.1525,131.78,131.71,0.0671104]
[1726443490061,16.1525,131.78,131.71,20.0671104]
[1726443495780,66.1525,131.78,131.71,0.0671104]
[1726443495980,23.776884,131.77,131.71,0.0671104]
[1726443497984,23.776884,131.77,131.67,0.2561186]
[1726443497985,16.3728,131.74,131.67,0.2561186]
[1726443498283,6.0209,131.73,131.67,0.2561186]
[1726443498483,16.3728,131.72,131.67,0.2561186]
[1726443498889,73.776884,131.71,131.67,0.2561186]
[1726443499100,16.3728,131.7,131.67,0.2561186]
[1726443499578,6.0209,131.69,131.67,0.2561186]
[1726443499779,16.3621,131.68,131.63,0.2561186]
[1726443500173,23.776884,131.67,131.63,0.2561186]
[1726443501277,23.776884,131.67,131.59,0.2561186]
[1726443501278,22.4632,131.65,131.59,0.2561186]
[1726443501670,23.776884,131.64,131.59,0.2561186]
[1726443501887,16.3621,131.63,131.59,0.2561186]
[1726443503799,6.3858,131.62,131.56,0.2561186]
[1726443503985,16.2231,131.61,131.56,0.2561186]
[1726443504187,66.2231,131.61,131.56,0.2561186]
[1726443504901,66.2231,131.61,131.56,0.2510787]
[1726443504902,16.2231,131.61,131.56,0.2510787]
[1726443509901,16.2231,131.61,131.56,24.54991096]
[1726443510200,16.2231,131.61,131.6,24.29883226]
[1726443510402,6.4444,131.65,131.6,44.29883226]
[1726443510620,15.8349,131.64,131.6,44.29883226]
[1726443515010,15.8349,131.64,131.59,20.0]
[1726443516403,15.8349,131.64,131.59,21.51957555]
[1726443520601,15.8349,131.64,131.59,20.0]
[1726443525135,15.8349,131.64,131.56,24.54991096]
[1726443525917,15.8349,131.64,131.58,15.55662327]
[1726443526918,15.8349,131.64,131.59,15.55662327]
[1726443527509,15.8349,131.64,131.56,0.2510787]
[1726443527720,15.8349,131.64,131.6,15.55662327]
[1726443527911,15.8349,131.64,131.58,24.30021492]
[1726443534539,15.8349,131.64,131.59,1.48447584]
[1726443535523,15.8349,131.64,131.58,24.30021492]
[1726443535836,15.8349,131.64,131.59,1.48368616]
[1726443536239,15.8349,131.64,131.58,24.30021492]
[1726443540041,15.8349,131.64,131.57,20.0]
[1726443540921,22.6721,131.64,131.56,0.2510787]
[1726443541120,22.6718,131.64,131.56,0.2510787]
[1726443541433,15.8349,131.64,131.56,0.2510787]
[1726443543652,15.8349,131.64,131.56,24.55129362]
[1726443549268,15.8349,131.64,131.57,20.0]
[1726443549559,15.8349,131.64,131.6,24.30021492]
[1726443549856,15.8349,131.64,131.62,24.30021492]
[1726443550063,15.8349,131.64,131.63,17.06110213]
[1726443550361,16.3189,131.67,131.64,20.0]
[1726443550546,16.3189,131.67,131.66,15.54196525]
[1726443553335,0.2846467,131.7,131.67,20.0]
[1726443553336,16.5106467,131.7,131.67,20.0]
[1726443553538,0.2846467,131.7,131.69,35.54196525]
[1726443553752,0.2846467,131.7,131.69,59.31884925]
[1726443554159,16.226,131.73,131.7,20.0]
[1726443554361,16.226,131.73,131.72,15.54196525]
[1726443554662,0.2678627,131.74,131.72,15.54196525]
[1726443554960,0.2678627,131.74,131.7,20.0]
[1726443554961,0.2678627,131.74,131.73,17.05998003]
[1726443555543,0.2678627,131.74,131.72,15.54196525]
[1726443555754,0.2678627,131.74,131.64,20.0]
[1726443555961,16.226,131.73,131.68,20.0]
[1726443556254,22.5998,131.73,131.68,20.0]
[1726443556940,22.5998,131.73,131.66,20.0]
[1726443557663,22.5998,131.73,131.68,20.0]
[1726443558751,22.5998,131.73,131.67,24.26721024]
[1726443560777,22.5998,131.73,131.68,20.0]
[1726443561969,22.5998,131.73,131.65,24.26721024]
[1726443563475,22.5998,131.73,131.67,24.26721024]
[1726443565241,22.5998,131.73,131.68,20.0]
[1726443565666,22.5998,131.73,131.69,23.776884]
[1726443566664,22.6862225,131.73,131.69,23.776884]
[1726443567266,22.6862225,131.73,131.69,48.04409424]
[1726443568261,22.6862225,131.73,131.7,1.51725566]
[1726443568465,22.6862225,131.73,131.69,48.04409424]
[1726443568889,22.6862225,131.73,131.7,1.51679475]
[1726443569093,22.6862225,131.73,131.71,1.51667958]
[1726443569271,16.3124225,131.73,131.71,25.78388982]
[1726443570679,16.3124225,131.73,131.71,1.51667958]
[1726443571567,16.3124225,131.73,131.7,20.0]
[1726443572682,16.3124225,131.73,131.68,20.0]
[1726443573206,16.3124225,131.73,131.69,24.26721024]
[1726443573371,16.3124225,131.73,131.71,24.26721024]
[1726443573894,16.3124225,131.73,131.72,1.51792919]
[1726443575975,0.0864225,131.73,131.72,1.51792919]
[1726443576292,0.2562002,131.75,131.74,43.776884]
[1726443576593,0.2562002,131.75,131.74,68.04409424]
[1726443578169,16.1289002,131.79,131.74,68.04409424]
[1726443578368,16.1289002,131.79,131.76,24.26721024]
[1726443579000,16.1289002,131.79,131.78,24.26721024]
[1726443579489,0.2562002,131.79,131.78,24.26721024]
[1726443579674,0.2562002,131.79,131.78,45.78449149]
[1726443579880,0.2562002,131.79,131.78,44.26721024]
[1726443580391,0.2562002,131.79,131.78,68.04409424]
[1726443581788,0.2562002,131.79,131.78,20.0]
[1726443582092,0.2562002,131.79,131.76,24.26721024]
[1726443582294,0.2562002,131.79,131.77,43.776884]
[1726443582784,0.2562002,131.79,131.78,24.26721024]
[1726443583091,0.2562002,131.79,131.78,44.26721024]
[1726443586496,0.2562002,131.79,131.78,68.04409424]
[1726443588488,0.2562002,131.83,131.78,68.04409424]
[1726443588807,0.2562002,131.83,131.74,51.57116693]
[1726443588808,0.2562002,131.83,131.82,43.776884]
[1726443590802,0.2562002,131.83,131.81,44.26721024]
[1726443590977,0.2562002,131.83,131.82,43.776884]
[1726443591506,0.2562002,131.83,131.82,45.29211761]
[1726443591903,0.2562002,131.83,131.82,43.776884]
[1726443594907,0.2562002,131.87,131.83,20.0]
[1726443594908,0.24531468,131.87,131.83,20.0]
[1726443595087,0.24531468,131.87,131.83,44.26721024]
[1726443596107,0.24531468,131.87,131.84,23.776884]
[1726443596403,0.24531468,131.87,131.78,9.4175451]
[1726443596613,16.5058,131.86,131.83,20.0]
[1726443597115,16.5058,131.86,131.81,20.0]
[1726443600708,16.5058,131.86,131.82,24.26721024]
[1726443600897,16.5058,131.86,131.83,20.0]
[1726443602012,16.5058,131.86,131.83,21.51564233]
[1726443602304,16.5058,131.86,131.77,10.55607214]
[1726443602305,16.5058,131.86,131.8,24.26721024]
[1726443602518,16.5058,131.86,131.78,24.26721024]
[1726443602884,16.5058,131.86,131.79,0.42315848]
[1726443603300,16.5058,131.86,131.8,24.26721024]
[1726443603500,16.5058,131.86,131.81,0.42309427]
[1726443603891,16.5058,131.86,131.81,20.42309427]
[1726443604088,16.5058,131.86,131.81,20.0]
[1726443606041,16.5058,131.86,131.76,20.0]
[1726443606325,16.5058,131.86,131.78,20.0]
[1726443606520,16.5058,131.86,131.75,24.26721024]
[1726443606711,15.8148,131.85,131.75,24.26721024]
[1726443607104,15.8148,131.85,131.72,0.31459982]
[1726443607105,15.8148,131.85,131.77,24.26721024]
[1726443607908,15.8148,131.85,131.78,20.0]
[1726443608113,15.8148,131.85,131.79,48.04409424]
[1726443608708,15.8148,131.85,131.82,20.0]
[1726443609805,15.8148,131.85,131.8,20.0]
[1726443610012,15.8148,131.85,131.78,20.0]
[1726443610218,15.8148,131.85,131.75,24.26721024]
[1726443611424,15.8148,131.85,131.76,20.0]
[1726443611725,15.8148,131.85,131.77,23.776884]
[1726443611901,15.8148,131.85,131.78,35.50954386]
[1726443616526,38.6448,131.85,131.78,35.50954386]
[1726443616834,15.8148,131.85,131.78,35.50954386]
[1726443617718,15.8148,131.85,131.78,20.0]
[1726443617929,15.0518,131.83,131.72,0.31459982]
[1726443618235,15.0518,131.83,131.76,20.0]
[1726443618433,21.8788,131.83,131.72,0.31459982]
[1726443618734,21.8788,131.83,131.74,15.50954386]
[1726443618906,15.0518,131.83,131.74,15.50954386]
[1726443619527,15.0518,131.83,131.75,15.50954386]
[1726443619921,15.0518,131.83,131.76,20.0]
[1726443620221,15.0518,131.83,131.77,15.50954386]
[1726443620418,15.0518,131.83,131.72,0.31459982]
[1726443620419,15.0518,131.83,131.78,15.50954386]
[1726443620605,15.0518,131.83,131.79,15.50954386]
[1726443621228,15.0518,131.83,131.78,15.50954386]
[1726443627013,15.0518,131.83,131.77,15.50954386]
[1726443628230,15.0518,131.83,131.78,15.50954386]
[1726443629509,15.0518,131.83,131.72,0.31459982]
[1726443629706,21.6878,131.82,131.74,20.0]
[1726443629912,23.776884,131.8,131.72,0.31459982]
[1726443630110,6.0325,131.78,131.72,0.31459982]
[1726443630629,15.763,131.77,131.72,30.31459982]
[1726443631037,15.763,131.77,131.72,0.31459982]
[1726443636747,15.763,131.77,131.63,23.010044]
[1726443636748,21.7145,131.74,131.63,15.509544]
[1726443636947,21.7145,131.74,131.6,9.33348594]
[1726443636948,21.7145,131.74,131.65,15.50954386]
[1726443637247,21.7145,131.74,131.71,15.50954386]
[1726443639429,15.4346,131.74,131.72,15.50954386]
[1726443639721,15.4346,131.74,131.73,15.50954386]
[1726443640126,21.7145,131.77,131.73,15.50954386]
[1726443640337,15.4346,131.77,131.76,15.50954386]
[1726443642042,15.4346,131.77,131.74,24.24205461]
[1726443642253,15.4346,131.77,131.75,20.0]
[1726443643656,15.4346,131.77,131.72,24.24205461]
[1726443643830,15.4346,131.77,131.7,24.24205461]
[1726443644839,15.4346,131.77,131.71,1.51724305]
[1726443645463,15.4346,131.77,131.71,20.0]
[1726443645747,15.4346,131.77,131.73,20.0]
[1726443645950,15.4346,131.77,131.74,1.5160914]
[1726443653365,15.4346,131.77,131.74,25.75814601]
[1726443655841,15.4346,131.77,131.73,20.0]
[1726443657552,15.4346,131.77,131.74,1.51796297]
[1726443658266,15.4346,131.77,131.74,25.76001758]
[1726443658963,15.4346,131.77,131.73,20.0]
[1726443660267,15.4346,131.77,131.74,25.75892811]
[1726443661168,15.4346,131.77,131.74,24.24205461]
[1726443661664,15.4346,131.77,131.73,20.0]
[1726443661868,15.4346,131.77,131.71,20.0]
[1726443662845,6.3308,131.76,131.71,20.0]
[1726443664993,6.3308,131.76,131.72,24.24205461]
[1726443665279,6.3308,131.76,131.71,20.0]
[1726443666381,6.3308,131.76,131.72,24.24205461]
[1726443667572,6.3308,131.76,131.73,1.51803304]
[1726443667772,6.3308,131.76,131.72,24.24205461]
[1726443668686,15.4346,131.77,131.73,21.5180413]
[1726443668872,15.4346,131.77,131.74,24.24205461]
[1726443669070,15.4346,131.77,131.75,1.51774842]
[1726443670759,15.4346,131.77,131.74,24.24205461]
[1726443671985,15.4346,131.77,131.76,15.51545006]
[1726443673089,15.4346,131.77,131.74,15.51545006]
[1726443673291,15.4346,131.77,131.74,20.0]
[1726443674177,15.4346,131.77,131.72,15.51545006]
[1726443674884,15.4346,131.77,131.73,15.51545006]
[1726443675063,15.4346,131.77,131.72,15.51545006]
[1726443675889,15.4346,131.77,131.73,15.51545006]
[1726443679589,15.4346,131.77,131.75,15.51545006]
[1726443681568,15.4346,131.77,131.74,15.51545006]
[1726443682094,15.4346,131.77,131.73,15.51545006]
[1726443686891,15.4346,131.77,131.72,20.0]
[1726443689494,6.0097,131.75,131.69,0.2219597]
[1726443689792,6.0097,131.75,131.7,15.51545006]
[1726443689994,6.0097,131.75,131.69,0.2219597]
[1726443689995,6.0097,131.75,131.71,15.51545006]
[1726443690367,6.0097,131.75,131.72,15.51545006]
[1726443690575,6.0097,131.75,131.73,15.51545006]
[1726443690771,6.0097,131.75,131.74,15.51545006]
[1726443690990,15.4346,131.77,131.74,15.51545006]
[1726443691197,15.4346,131.77,131.72,15.51545006]
[1726443692281,15.4346,131.77,131.75,15.51545006]
[1726443692489,15.4346,131.77,131.76,15.51545006]
[1726443692671,57.1161785,131.83,131.75,15.51545006]
[1726443692878,15.5465,131.81,131.77,15.51545006]
[1726443693470,15.5465,131.81,131.78,15.51545006]
[1726443693792,15.5465,131.81,131.79,15.51545006]
[1726443694389,15.5465,131.81,131.78,15.51545006]
[1726443695703,15.5465,131.81,131.79,15.51545006]
[1726443695879,15.5465,131.81,131.8,15.51545006]
[1726443699683,15.5465,131.81,131.78,15.51545006]
[1726443700084,15.5465,131.81,131.77,15.51545006]
[1726443700498,15.5465,131.81,131.76,15.51545006]
[1726443700785,15.5465,131.81,131.75,15.51545006]
[1726443701096,15.5465,131.81,131.74,15.51545006]
[1726443701993,15.5465,131.81,131.72,24.24983381]
[1726443702787,15.5465,131.81,131.73,20.0]
[1726443703200,15.5465,131.81,131.73,21.5171434]
[1726443703510,15.5465,131.81,131.74,1.51794976]
[1726443703809,15.5465,131.81,131.74,24.24983381]
[1726443704994,15.5465,131.81,131.75,20.0]
[1726443705201,15.5465,131.81,131.76,24.24983381]
[1726443709324,15.5465,131.81,131.78,24.24983381]
[1726443711124,15.5465,131.81,131.77,20.0]
[1726443714723,0.2889785,131.83,131.8,24.24983381]
[1726443715421,0.2889785,131.83,131.82,24.24983381]
[1726443719908,0.2889785,131.83,131.82,68.02671781]
[1726443720210,0.2889785,131.83,131.82,45.29358265]
[1726443720408,15.0976,131.86,131.82,45.29358265]
[1726443720409,15.0976,131.86,131.83,43.776884]
[1726443720599,0.2554691,131.87,131.85,43.776884]
[1726443720805,0.2554691,131.87,131.86,25.76630316]
[1726443721004,0.2554691,131.87,131.86,24.24983381]
[1726443721727,0.2554691,131.87,131.84,44.24983381]
[1726443722220,0.2554691,131.87,131.83,20.0]
[1726443723106,0.2554691,131.87,131.84,1.51149151]
[1726443723704,0.2554691,131.87,131.83,20.0]
[1726443724412,0.2554691,131.87,131.84,25.76652357]
[1726443724821,0.2554691,131.87,131.85,1.51667553]
[1726443725219,0.2554691,131.87,131.86,69.54258818]
[1726443725502,0.2554691,131.87,131.86,68.02671781]
[1726443726109,0.2554691,131.87,131.86,44.24983381]
[1726443726618,0.2554691,131.87,131.84,24.24983381]
[1726443727008,0.2554691,131.87,131.85,20.0]
[1726443731128,0.2554691,131.87,131.86,1.10901235]
[1726443731432,0.2554691,131.87,131.85,20.0]
[1726443732009,0.2554691,131.87,131.82,24.24983381]
[1726443732222,0.2554691,131.87,131.83,20.0]
[1726443732635,0.2554691,131.87,131.83,21.51675892]
[1726443733217,0.2554691,131.87,131.86,24.24983381]
[1726443733932,0.2554691,131.87,131.86,44.24983381]
[1726443735405,0.2554691,131.87,131.86,68.02671781]
[1726443736926,0.2554691,131.87,131.86,20.0]
[1726443737240,0.2554691,131.87,131.85,20.0]
[1726443737816,0.2554691,131.87,131.82,24.24983381]
[1726443739342,0.2554691,131.87,131.83,20.0]
[1726443739854,6.8222691,131.87,131.82,24.24983381]
[1726443740839,6.8222691,131.87,131.8,24.24983381]
[1726443741140,15.0395,131.86,131.8,24.24983381]
[1726443741447,15.0395,131.86,131.82,20.0]
[1726443742945,15.0395,131.86,131.82,44.24983381]
[1726443743135,15.0395,131.86,131.83,1.51685473]
[1726443743944,15.0395,131.86,131.82,44.24983381]
[1726443744357,15.0395,131.86,131.8,24.24983381]
[1726443744529,15.0395,131.86,131.77,7.8151]
[1726443744530,15.0395,131.86,131.81,20.0]
[1726443745150,15.0395,131.86,131.8,20.0]
[1726443749253,15.0395,131.86,131.81,23.776884]
[1726443750653,15.0395,131.86,131.81,48.02671781]
[1726443751534,15.0395,131.86,131.82,1.51602866]
[1726443751950,15.0395,131.86,131.81,48.02671781]
[1726443754870,15.0395,131.86,131.82,1.51683621]
[1726443755176,15.0395,131.86,131.82,21.51683621]
[1726443755344,15.0395,131.86,131.83,1.51684482]
[1726443755668,15.0395,131.86,131.82,20.0]
[1726443758083,15.0395,131.86,131.8,20.0]
[1726443760343,15.0395,131.86,131.82,20.0]
[1726443760544,15.0395,131.86,131.84,20.0]
[1726443764777,15.0395,131.86,131.79,24.2246244]
[1726443764979,15.0395,131.86,131.8,20.0]
[1726443765187,15.0395,131.86,131.75,32.3890307]
[1726443765473,15.0395,131.86,131.77,24.2246244]
[1726443765682,15.0395,131.86,131.76,30.0]
[1726443765683,15.2511,131.85,131.76,30.0]
[1726443765975,15.2511,131.83,131.75,24.2246244]
[1726443766176,15.2511,131.83,131.73,24.4800935]
[1726443766377,15.2511,131.83,131.74,1.51767234]
[1726443766947,15.2511,131.83,131.75,24.2246244]
[1726443767483,15.2511,131.83,131.76,20.0]
[1726443769259,15.4635,131.81,131.75,20.0]
[1726443770384,15.4635,131.81,131.74,20.0]
[1726443771653,22.2915,131.81,131.73,0.2554691]
[1726443771853,22.5436,131.8,131.73,0.2554691]
[1726443772076,16.0341,131.79,131.73,0.2554691]
[1726443779513,15.3373,131.77,131.73,0.2554691]
[1726443788890,22.1674,131.77,131.73,0.2554691]
[1726443789291,15.3373,131.77,131.73,0.2554691]
[1726443793041,6.8316,131.74,131.69,0.2554691]
[1726443793321,16.1014,131.73,131.69,0.2554691]
[1726443793795,6.6377,131.72,131.69,0.2554691]
[1726443794698,6.6377,131.72,131.69,15.78442533]
[1726443796411,6.6377,131.72,131.69,0.2554691]
[1726443797122,16.1014,131.71,131.65,0.2554691]
[1726443797310,22.9347,131.71,131.65,0.2554691]
[1726443798023,30.610684,131.7,131.65,0.2554691]
[1726443799832,16.0057,131.69,131.65,0.2554691]
[1726443801918,22.8399,131.69,131.65,0.2554691]
[1726443802117,6.2339,131.68,131.65,0.2554691]
[1726443802902,16.0057,131.67,131.65,0.2554691]
[1726443803114,16.0057,131.67,131.61,0.2554691]
[1726443803524,50.612684,131.66,131.61,0.2554691]
[1726443803729,6.8368,131.64,131.61,0.2554691]
[1726443804031,6.8364,131.65,131.61,0.2554691]
[1726443804209,50.612684,131.66,131.61,0.2554691]
[1726443804811,16.0057,131.67,131.61,0.2554691]
[1726443805223,16.0057,131.67,131.61,1.77472135]
[1726443805519,16.0057,131.67,131.61,24.54912046]
[1726443810440,16.0057,131.67,131.61,0.2554691]
[1726443810945,16.0057,131.67,131.61,20.2554691]
[1726443812841,16.0057,131.67,131.61,44.54912046]
[1726443814344,16.0057,131.67,131.61,45.95912205]
[1726443814551,16.0057,131.67,131.61,44.54912046]
[1726443819264,16.0057,131.67,131.62,23.776884]
[1726443820048,16.0057,131.67,131.63,15.54594402]
[1726443822853,16.0057,131.67,131.62,15.54594402]
[1726443829173,16.0057,131.67,131.64,15.54594402]
[1726443829366,16.5334,131.7,131.66,15.54594402]
[1726443829611,16.5334,131.7,131.67,15.54594402]
[1726443829776,16.5334,131.7,131.66,15.54594402]
[1726443837480,16.5334,131.7,131.65,15.54594402]
[1726443837715,16.5334,131.7,131.65,20.0]
[1726443838374,16.5334,131.7,131.64,20.0]
[1726443838578,50.611084,131.69,131.61,0.2554691]
[1726443838797,23.776884,131.69,131.63,15.54594402]
[1726443839009,16.5334,131.7,131.64,15.54594402]
[1726443840303,23.3672,131.7,131.64,15.54594402]
[1726443841086,23.3672,131.7,131.63,15.54594402]
[1726443841614,16.5334,131.7,131.63,15.54594402]
[1726443843111,16.5334,131.7,131.66,15.54594402]
[1726443844795,16.5334,131.7,131.65,15.54594402]
[1726443845528,16.5334,131.7,131.65,20.0]
[1726443846820,16.5334,131.7,131.65,15.54594402]
[1726443848143,16.5334,131.7,131.64,15.54594402]
[1726443848323,16.5334,131.7,131.65,20.0]
[1726443850727,16.5334,131.7,131.65,35.54594402]
[1726443853318,16.5334,131.7,131.67,15.54594402]
[1726443853929,16.5334,131.7,131.68,15.54594402]
[1726443854244,7.0869691,131.75,131.69,15.54594402]
[1726443854245,16.6571,131.74,131.69,15.54594402]
[1726443856732,16.6571,131.74,131.7,15.54594402]
[1726443856935,16.6571,131.74,131.63,14.8605]
[1726443856936,16.6571,131.74,131.71,15.54594402]
[1726443859043,0.2554691,131.75,131.73,15.54594402]
[1726443859216,0.2554691,131.75,131.68,15.1619]
[1726443859217,0.2554691,131.75,131.74,15.54594402]
[1726443859423,0.2554691,131.75,131.69,20.0]
[1726443859728,0.2554691,131.75,131.71,15.54594402]
[1726443859939,0.2554691,131.75,131.69,23.776884]
[1726443860130,0.2554691,131.75,131.7,35.54594402]
[1726443861153,0.2554691,131.75,131.71,15.54594402]
[1726443861634,0.2554691,131.75,131.74,15.54594402]
[1726443872035,0.2554691,131.75,131.73,15.54594402]
[1726443877064,0.2554691,131.75,131.68,3.07657219]
[1726443877357,0.2554691,131.75,131.69,15.54594402]
[1726443878963,0.2554691,131.75,131.7,15.54594402]
[1726443892579,0.2554691,131.75,131.72,15.54594402]
[1726443892765,0.2554691,131.75,131.74,15.54594402]
[1726443894083,0.2554691,131.75,131.74,35.54594402]
[1726443897381,0.2554691,131.75,131.66,14.9258]
[1726443897676,0.2554691,131.75,131.71,15.54594402]
[1726443897973,0.2554691,131.75,131.72,15.54594402]
[1726443898752,0.2554691,131.75,131.71,15.54594402]
[1726443898972,0.2554691,131.75,131.72,20.0]
[1726443899860,0.2554691,131.75,131.72,15.54594402]
[1726443900749,0.2554691,131.75,131.73,15.54594402]
[1726443901861,0.2554691,131.75,131.69,20.0]
[1726443902181,0.2554691,131.75,131.72,20.0]
[1726443904358,0.2554691,131.75,131.72,35.54594402]
[1726443905292,0.2554691,131.75,131.73,15.54594402]
[1726443907482,0.2554691,131.75,131.72,15.54594402]
[1726443912406,0.2554691,131.75,131.74,15.54594402]
[1726443914610,0.2554691,131.75,131.74,35.54594402]
[1726443916419,0.2554691,131.75,131.67,20.0]
[1726443916719,0.2554691,131.75,131.71,15.54594402]
[1726443916893,0.2554691,131.75,131.72,15.54594402]
[1726443918721,16.7807691,131.75,131.67,20.0]
[1726443918900,16.7807691,131.75,131.72,20.0]
[1726443919915,16.7807691,131.75,131.71,15.54594402]
[1726443920211,16.7807691,131.75,131.71,20.0]
[1726443922997,16.7807691,131.75,131.71,15.54594402]
[1726443924812,16.7807691,131.75,131.72,15.54594402]
[1726443925501,0.2554691,131.75,131.74,15.54594402]
[1726443926313,0.2554691,131.75,131.71,20.0]
[1726443926514,0.2554691,131.75,131.7,23.776884]
[1726443926515,0.2554691,131.75,131.73,15.54594402]
[1726443927433,0.2554691,131.75,131.72,15.54594402]
[1726443927930,0.2554691,131.75,131.73,20.0]
[1726443928103,0.2554691,131.75,131.73,35.54594402]
[1726443932827,0.2554691,131.75,131.72,15.54594402]
[1726443933138,0.2554691,131.75,131.73,20.0]
[1726443933436,0.2554691,131.75,131.74,15.54594402]
[1726443933622,0.2554691,131.75,131.67,20.0]
[1726443933931,0.2554691,131.75,131.73,15.54594402]
[1726443934317,0.2554691,131.75,131.74,15.54594402]